bitfinex-derivatives/quotes_BTCF0:USTF0_20251204
["timestamp","ask_amount","ask_price","bid_price","bid_amount"]
[1764858241211,0.06638322,92729.0,92728.0,0.01288]
[1764858241412,0.06638322,92729.0,92728.0,0.001]
[1764858241622,0.06638322,92729.0,92728.0,0.05782]
[1764858241810,0.06638322,92729.0,92728.0,0.01283025]
[1764858242014,0.06638322,92729.0,92700.0,0.07761246]
[1764858242015,0.05318,92712.0,92711.0,0.03870908]
[1764858242222,0.05318,92702.0,92701.0,0.07367]
[1764858242512,0.0107857,92708.0,92702.0,0.0107863]
[1764858242720,0.0107857,92708.0,92701.0,0.01685]
[1764858242721,0.0639656,92708.0,92707.0,0.05682]
[1764858244707,0.0639656,92708.0,92701.0,0.02984015]
[1764858244708,0.05318,92708.0,92701.0,0.02984015]
[1764858244913,0.3608,92712.0,92701.0,0.02984015]
[1764858244914,0.06638632,92702.0,92701.0,0.08473015]
[1764858245213,0.06638632,92702.0,92701.0,0.01199015]
[1764858245414,0.05318,92699.0,92698.0,0.00016181]
[1764858245626,0.05560002,92699.0,92698.0,0.01194866]
[1764858246326,0.19560002,92699.0,92698.0,0.00016181]
[1764858246523,0.19560002,92699.0,92686.0,0.00034885]
[1764858246524,0.06648,92687.0,92686.0,5e-08]
[1764858246823,0.05318,92669.0,92668.0,0.03870908]
[1764858247011,0.05318,92662.0,92661.0,0.05489]
[1764858247418,0.05318,92662.0,92661.0,0.0669865]
[1764858247723,0.05325912,92662.0,92661.0,0.0669865]
[1764858249310,7.912e-05,92662.0,92661.0,0.0669865]
[1764858249716,0.00249914,92662.0,92661.0,0.0669865]
[1764858249926,0.00107912,92662.0,92661.0,0.0739865]
[1764858250123,0.00107912,92662.0,92661.0,0.0759865]
[1764858250627,0.00107912,92662.0,92661.0,0.4367865]
[1764858250827,0.00016181,92671.0,92670.0,0.0656801]
[1764858252031,0.00016181,92671.0,92670.0,0.4274801]
[1764858252427,0.00016181,92671.0,92670.0,0.4324801]
[1764858253828,0.3608,92688.0,92687.0,0.0656781]
[1764858255235,0.41555,92696.0,92695.0,0.05489]
[1764858255532,0.41797002,92696.0,92695.0,0.05489]
[1764858256128,0.01094881,92697.0,92688.0,0.01676]
[1764858256129,0.00016181,92697.0,92696.0,0.082437]
[1764858256934,0.0107861,92704.0,92696.0,0.082437]
[1764858256935,0.0107861,92704.0,92703.0,0.0656762]
[1764858257326,0.0378261,92704.0,92703.0,0.0656762]
[1764858258028,0.0107861,92704.0,92703.0,0.0656762]
[1764858258231,0.38784,92706.0,92705.0,0.05489]
[1764858258537,0.41555,92706.0,92705.0,0.05489]
[1764858259224,0.3608,92706.0,92705.0,0.05489]
[1764858260942,0.0655354,92710.0,92709.0,0.0656755]
[1764858261142,0.0655354,92710.0,92709.0,0.05489]
[1764858261344,0.065536,92705.0,92704.0,0.05489]
[1764858261530,0.06795602,92705.0,92704.0,0.05489]
[1764858261728,0.06795602,92705.0,92704.0,0.07165]
[1764858263042,0.0655365,92701.0,92700.0,0.06583831]
[1764858263233,0.06795652,92701.0,92700.0,0.05505181]
[1764858263439,0.06795652,92701.0,92700.0,0.00016181]
[1764858263642,0.10717002,92701.0,92680.0,0.3883488]
[1764858263849,0.0655388,92681.0,92680.0,0.43245]
[1764858265449,0.0655388,92681.0,92680.0,0.43445]
[1764858268231,0.0655388,92681.0,92680.0,0.3628]
[1764858268644,0.0655388,92681.0,92680.0,0.41769]
[1764858268843,0.0655388,92681.0,92680.0,0.43445]
[1764858271340,0.05475,92681.0,92680.0,0.43445]
[1764858271531,0.0353,92689.0,92680.0,0.43445]
[1764858271532,0.0353,92689.0,92688.0,0.05489]
[1764858271736,0.00016181,92690.0,92689.0,0.0656779]
[1764858274536,0.05730183,92690.0,92689.0,0.0656779]
[1764858274937,0.00016181,92690.0,92689.0,0.0656779]
[1764858275139,0.00016181,92690.0,92689.0,0.0686779]
[1764858275647,0.00016181,92690.0,92689.0,0.0656779]
[1764858275939,0.00016181,92690.0,92689.0,0.0676779]
[1764858276344,0.00016181,92690.0,92689.0,0.0686779]
[1764858277745,0.00016181,92690.0,92689.0,0.0656779]
[1764858277933,0.00258183,92690.0,92689.0,0.0686779]
[1764858278138,0.00016181,92690.0,92689.0,0.0686779]
[1764858278335,0.00016181,92690.0,92689.0,0.10438698]
[1764858278540,0.00016181,92690.0,92689.0,0.10738698]
[1764858278844,0.00016181,92690.0,92689.0,0.10838698]
[1764858279046,0.00016181,92690.0,92689.0,0.10538698]
[1764858279245,0.00016181,92690.0,92689.0,0.0686779]
[1764858279846,0.05809183,92690.0,92689.0,0.0700679]
[1764858280240,0.41889183,92690.0,92689.0,0.0700679]
[1764858280445,0.41889183,92690.0,92689.0,0.0690679]
[1764858280650,0.41889183,92690.0,92689.0,0.0670679]
[1764858280950,0.41889183,92690.0,92689.0,0.0700679]
[1764858281141,0.36096181,92690.0,92689.0,0.0700679]
[1764858281337,0.36096181,92690.0,92689.0,0.0670679]
[1764858282150,0.00016181,92690.0,92689.0,0.0680679]
[1764858282651,0.00016181,92690.0,92689.0,0.12727724]
[1764858282837,0.06887953,92690.0,92689.0,0.0690679]
[1764858284056,0.06887953,92690.0,92689.0,0.0670679]
[1764858284349,0.06887953,92690.0,92689.0,0.0700679]
[1764858284747,0.06887953,92690.0,92689.0,0.0690679]
[1764858285843,0.06887953,92690.0,92689.0,0.05828]
[1764858287354,0.06887953,92690.0,92689.0,0.05728]
[1764858287858,0.06887953,92690.0,92689.0,0.05628]
[1764858288155,0.06887953,92690.0,92689.0,0.05728]
[1764858290256,0.06887953,92690.0,92689.0,0.09605068]
[1764858290556,0.06887953,92690.0,92689.0,0.09505068]
[1764858290754,0.06887953,92690.0,92689.0,0.09605068]
[1764858293351,0.06887953,92690.0,92689.0,0.05728]
[1764858293658,0.0659089,92680.0,92679.0,0.06644303]
[1764858293858,0.4267089,92680.0,92679.0,0.09555303]
[1764858294055,0.4267089,92680.0,92679.0,0.05675]
[1764858294652,0.4267089,92680.0,92679.0,0.02764]
[1764858294859,0.4267089,92680.0,92679.0,0.05975]
[1764858301360,0.0353,92688.0,92687.0,0.05675]
[1764858301556,0.00016181,92690.0,92689.0,0.05675]
[1764858301752,0.3608,92703.0,92702.0,0.05675]
[1764858303558,0.001,92703.0,92702.0,0.05675]
[1764858304260,0.00016181,92712.0,92711.0,0.0668453]
[1764858305772,0.00016181,92712.0,92711.0,0.0959047]
[1764858306364,0.00016181,92712.0,92711.0,0.0668453]
[1764858306565,0.00116181,92712.0,92711.0,0.0668453]
[1764858306760,0.0107837,92725.0,92724.0,0.0678838]
[1764858306961,0.0664437,92725.0,92724.0,0.0571]
[1764858307862,0.0674437,92725.0,92724.0,0.0571]
[1764858308857,0.0674437,92725.0,92724.0,0.04011144]
[1764858309173,0.0714437,92725.0,92724.0,0.01143144]
[1764858309473,0.0714437,92725.0,92724.0,0.0571]
[1764858311362,0.0714437,92725.0,92724.0,0.06864696]
[1764858312869,0.0714437,92725.0,92724.0,0.42944696]
[1764858312870,0.005,92725.0,92724.0,0.42944696]
[1764858316868,0.06066,92725.0,92724.0,0.42944696]
[1764858317874,0.03283,92725.0,92724.0,0.42944696]
[1764858318082,0.005,92725.0,92724.0,0.42944696]
[1764858319976,0.06066,92725.0,92724.0,0.42944696]
[1764858320175,0.06066,92725.0,92724.0,0.44023076]
[1764858320582,0.03283,92725.0,92724.0,0.44023076]
[1764858321186,0.06066,92725.0,92724.0,0.44023076]
[1764858322380,0.03283,92725.0,92724.0,0.44023076]
[1764858322886,0.03183,92725.0,92724.0,0.44023076]
[1764858323087,0.03183,92725.0,92724.0,0.45758076]
[1764858323286,0.02783,92725.0,92724.0,0.45758076]
[1764858323485,0.02783,92725.0,92724.0,0.46058076]
[1764858323787,0.0386137,92725.0,92724.0,0.46058076]
[1764858324588,0.00026961,92726.0,92725.0,0.0571]
[1764858324981,0.01105311,92726.0,92725.0,0.0571]
[1764858325488,0.03888311,92726.0,92725.0,0.0571]
[1764858326679,0.03888311,92726.0,92725.0,0.0591]
[1764858327088,0.03888311,92726.0,92725.0,0.0571]
[1764858327286,0.00026961,92726.0,92725.0,0.0591]
[1764858328178,0.00268963,92726.0,92725.0,0.0591]
[1764858328382,0.00026961,92726.0,92725.0,0.0591]
[1764858328979,0.02809961,92726.0,92725.0,0.0591]
[1764858330184,0.05592961,92726.0,92725.0,0.0591]
[1764858332595,0.05592961,92726.0,92725.0,0.08816761]
[1764858332798,0.05592961,92726.0,92725.0,0.0581]
[1764858333899,0.05592961,92726.0,92725.0,0.0571]
[1764858334102,0.05592961,92726.0,92725.0,0.0581]
[1764858334603,0.05592961,92726.0,92725.0,0.0571]
[1764858335797,0.05592961,92726.0,92725.0,0.0678837]
[1764858336800,0.00026961,92726.0,92725.0,0.0688837]
[1764858337106,0.00026961,92726.0,92725.0,0.10760706]
[1764858338605,0.00016181,92734.0,92733.0,0.0702427]
[1764858340512,0.00116181,92734.0,92733.0,0.0702427]
[1764858361517,0.0353,92746.0,92745.0,0.05594]
[1764858361708,0.0386103,92754.0,92753.0,0.0667204]
[1764858361909,0.01320032,92754.0,92753.0,0.0667204]
[1764858362314,0.0107803,92754.0,92753.0,0.0667204]
[1764858362910,0.06313,92756.0,92755.0,0.05594]
[1764858363109,0.09096,92756.0,92755.0,0.05594]
[1764858363616,0.06313,92756.0,92755.0,0.05594]
[1764858364308,0.0353,92756.0,92755.0,0.05594]
[1764858364907,0.06913,92756.0,92755.0,0.05594]
[1764858365112,0.0413,92756.0,92755.0,0.05594]
[1764858365307,0.06913,92756.0,92755.0,0.05594]
[1764858365519,0.09854,92756.0,92755.0,0.05594]
[1764858367025,0.0433,92756.0,92755.0,0.05594]
[1764858367318,0.09854,92756.0,92755.0,0.0569]
[1764858368517,0.09554,92756.0,92755.0,0.0569]
[1764858368724,0.09754,92756.0,92755.0,0.0569]
[1764858369914,0.0423,92756.0,92755.0,0.0569]
[1764858371126,0.09754,92756.0,92755.0,0.0569]
[1764858371328,0.0423,92756.0,92755.0,0.0569]
[1764858372629,0.007,92756.0,92755.0,0.0569]
[1764858374025,0.36096172,92763.0,92762.0,0.0695894]
[1764858375026,0.00016172,92763.0,92762.0,0.10833091]
[1764858375224,0.00316172,92763.0,92762.0,0.0695894]
[1764858376623,0.00316172,92763.0,92762.0,0.10833091]
[1764858377024,0.00116172,92763.0,92762.0,0.10833091]
[1764858377923,0.00116172,92763.0,92762.0,0.0695894]
[1764858378126,0.00116172,92763.0,92762.0,0.10826915]
[1764858379021,0.00116172,92763.0,92762.0,0.0695894]
[1764858379336,0.00116172,92763.0,92762.0,0.10826124]
[1764858380125,0.06812092,92763.0,92762.0,0.0695894]
[1764858381832,0.06812092,92763.0,92762.0,0.05881]
[1764858383342,0.0669597,92759.0,92758.0,0.05881]
[1764858384840,0.0669597,92759.0,92758.0,0.06181]
[1764858385135,0.0107797,92759.0,92758.0,0.06181]
[1764858385337,0.0669597,92759.0,92758.0,0.06181]
[1764858386044,0.00016172,92763.0,92761.0,0.0107794]
[1764858386243,0.00016172,92763.0,92762.0,0.05881]
[1764858387643,0.00016172,92763.0,92762.0,0.06081]
[1764858393340,0.0002695,92766.0,92765.0,0.05881]
[1764858394342,0.0002695,92766.0,92765.0,0.069589]
[1764858394537,0.0012695,92766.0,92765.0,0.070589]
[1764858394937,0.0012695,92766.0,92765.0,0.088269]
[1764858396848,0.0012695,92766.0,92765.0,0.12694084]
[1764858397042,0.0012695,92766.0,92765.0,0.088269]
[1764858397250,0.0012695,92766.0,92765.0,0.12694084]
[1764858398545,0.0285195,92766.0,92765.0,0.12694084]
[1764858399244,0.0012695,92766.0,92765.0,0.088269]
[1764858400852,0.0353,92771.0,92770.0,0.0855084]
[1764858401052,0.00966472,92771.0,92770.0,0.0855084]
[1764858402354,0.01066472,92771.0,92770.0,0.0855084]
[1764858403245,0.371578,92774.0,92770.0,0.0855084]
[1764858403246,1.72e-06,92775.0,92774.0,0.067828]
[1764858403450,0.3715769,92784.0,92783.0,0.0678269]
[1764858403451,0.3608,92784.0,92783.0,0.0678269]
[1764858403651,0.0097,92787.0,92786.0,0.0678266]
[1764858403951,0.0097,92787.0,92786.0,0.10660971]
[1764858404154,0.0097,92787.0,92786.0,0.0678266]
[1764858404655,0.03695,92787.0,92786.0,0.0678266]
[1764858405052,0.03895,92787.0,92786.0,0.0678266]
[1764858405249,0.0117,92787.0,92786.0,0.0678266]
[1764858405649,0.0117,92787.0,92786.0,0.07907979]
[1764858405857,0.03895,92787.0,92786.0,0.07907979]
[1764858406152,0.06994,92787.0,92786.0,0.07907979]
[1764858406742,0.06994,92787.0,92786.0,0.10813449]
[1764858406947,0.06994,92787.0,92786.0,0.07907979]
[1764858407154,0.06994,92787.0,92786.0,0.10812846]
[1764858408454,0.06024,92787.0,92786.0,0.10812846]
[1764858409257,0.06024,92787.0,92786.0,0.07907979]
[1764858410359,0.06024,92787.0,92786.0,0.06830319]
[1764858411851,0.003,92787.0,92786.0,0.06830319]
[1764858413663,0.010776,92792.0,92791.0,0.05414]
[1764858413864,0.010776,92792.0,92790.0,0.01793]
[1764858413865,0.41932751,92796.0,92795.0,0.07207]
[1764858414662,0.43010291,92796.0,92795.0,0.07207]
[1764858414864,0.41932751,92796.0,92795.0,0.07207]
[1764858415062,0.39404751,92796.0,92795.0,0.07207]
[1764858415364,0.39404751,92796.0,92795.0,0.04501]
[1764858415567,0.00410751,92796.0,92795.0,0.07207]
[1764858415768,0.00610751,92796.0,92795.0,0.07207]
[1764858416654,0.0691946,92804.0,92795.0,0.01793]
[1764858416860,0.0691946,92804.0,92803.0,0.05414]
[1764858417261,0.00026938,92806.0,92805.0,0.07207]
[1764858417662,0.0107735,92813.0,92810.0,0.01793]
[1764858417970,0.0691935,92813.0,92812.0,0.05414]
[1764858418673,0.0711935,92813.0,92812.0,0.05414]
[1764858419277,0.0711935,92813.0,92812.0,0.41494]
[1764858420070,0.0751935,92813.0,92812.0,0.41494]
[1764858420678,0.0721935,92813.0,92812.0,0.41494]
[1764858421276,0.0701935,92813.0,92812.0,0.41494]
[1764858421472,0.0711935,92813.0,92812.0,0.05414]
[1764858423176,0.0711935,92813.0,92812.0,0.02708]
[1764858423678,0.0696143,92806.0,92805.0,0.07717]
[1764858424882,0.0706143,92806.0,92805.0,0.43797]
[1764858427385,0.0117743,92806.0,92805.0,0.43797]
[1764858427579,0.0417343,92806.0,92805.0,0.43797]
[1764858427780,0.0706143,92806.0,92805.0,0.43797]
[1764858428679,0.0117743,92806.0,92805.0,0.43797]
[1764858428877,0.0417343,92806.0,92805.0,0.43797]
[1764858429475,0.0706143,92806.0,92805.0,0.43797]
[1764858435790,0.0706143,92806.0,92805.0,0.46997105]
[1764858436290,0.0696143,92806.0,92805.0,0.46997105]
[1764858436882,0.0696143,92806.0,92805.0,0.10917105]
[1764858437091,0.0696143,92806.0,92805.0,0.08017]
[1764858437479,0.0696143,92806.0,92805.0,0.10917105]
[1764858438679,0.0696143,92806.0,92805.0,0.08017]
[1764858439582,0.0696143,92806.0,92805.0,0.06224]
[1764858440889,0.2096143,92806.0,92805.0,0.003]
[1764858441887,0.6096143,92806.0,92805.0,0.003]
[1764858442089,0.0696153,92797.0,92796.0,0.00016163]
[1764858442288,0.43283532,92797.0,92796.0,0.05940163]
[1764858443492,0.07203532,92797.0,92796.0,0.05940163]
[1764858443795,0.07203532,92797.0,92796.0,0.06340163]
[1764858444194,0.0107753,92797.0,92796.0,0.06340163]
[1764858444398,0.0107753,92797.0,92796.0,0.10218474]
[1764858445097,0.0107753,92797.0,92796.0,0.06340163]
[1764858446794,0.0107739,92800.0,92799.0,0.0700138]
[1764858446987,0.0107739,92800.0,92799.0,0.4308138]
[1764858447190,0.3715728,92809.0,92808.0,0.07549]
[1764858447502,0.0107728,92809.0,92808.0,0.07549]
[1764858447696,0.0407328,92809.0,92808.0,0.07549]
[1764858448597,0.0696128,92809.0,92808.0,0.07549]
[1764858448994,0.11671777,92828.0,92827.0,0.05924]
[1764858449307,0.11671777,92828.0,92826.0,0.01625]
[1764858449308,0.3608,92831.0,92830.0,0.05924]
[1764858449604,0.4015296,92837.0,92836.0,0.05924]
[1764858449803,0.4304096,92837.0,92836.0,0.05924]
[1764858450298,0.0696096,92837.0,92836.0,0.05924]
[1764858450689,0.0417296,92837.0,92836.0,0.05924]
[1764858450889,0.0706096,92837.0,92836.0,0.05924]
[1764858451909,0.0726096,92837.0,92836.0,0.07058454]
[1764858453108,0.003,92837.0,92836.0,0.08135424]
[1764858453297,0.00231517,92837.0,92836.0,0.08135424]
[1764858453502,0.00026926,92846.0,92845.0,0.0700086]
[1764858453702,0.00026926,92846.0,92845.0,0.4308086]
[1764858454303,0.0107676,92854.0,92853.0,0.0679277]
[1764858454511,0.0398976,92854.0,92853.0,0.05716]
[1764858454705,0.0676776,92854.0,92853.0,0.05716]
[1764858455904,0.0686776,92854.0,92853.0,0.05716]
[1764858456293,0.0696776,92854.0,92853.0,0.05716]
[1764858456510,0.0418976,92854.0,92853.0,0.05716]
[1764858456900,0.0127676,92854.0,92853.0,0.05716]
[1764858457099,0.0418976,92854.0,92853.0,0.05716]
[1764858457506,0.0696776,92854.0,92853.0,0.05716]
[1764858460109,0.05891,92854.0,92853.0,0.4287277]
[1764858460309,0.3608,92881.0,92867.0,0.0679261]
[1764858460515,0.0676745,92881.0,92880.0,0.05716]
[1764858460710,0.0676752,92875.0,92874.0,0.05716]
[1764858461007,0.07009522,92875.0,92874.0,0.05716]
[1764858461611,0.07009522,92875.0,92868.0,0.05716]
[1764858461612,0.0676759,92869.0,92868.0,0.05716]
[1764858461909,0.0676762,92866.0,92865.0,0.00016153]
[1764858462109,0.07009622,92866.0,92865.0,0.00016153]
[1764858462411,0.07009622,92866.0,92865.0,0.05732153]
[1764858462617,0.21009622,92866.0,92865.0,0.00016153]
[1764858462911,0.07009622,92866.0,92865.0,0.05732153]
[1764858463911,0.0676762,92866.0,92865.0,0.05732153]
[1764858464120,0.0107662,92866.0,92865.0,0.05732153]
[1764858464310,0.0676762,92866.0,92865.0,0.05732153]
[1764858464614,0.0676762,92866.0,92865.0,0.06032153]
[1764858466910,0.0676762,92866.0,92865.0,0.00316153]
[1764858468411,0.0676762,92866.0,92865.0,0.03059153]
[1764858468716,0.0676762,92866.0,92865.0,0.00316153]
[1764858469013,0.0676762,92866.0,92865.0,0.03059153]
[1764858469214,0.0676762,92866.0,92865.0,0.00316153]
[1764858469809,0.0676762,92866.0,92865.0,0.03059153]
[1764858470009,0.0676762,92866.0,92865.0,0.05793153]
[1764858470211,0.0676762,92866.0,92865.0,0.00316153]
[1764858471017,0.1976762,92866.0,92865.0,0.00316153]
[1764858472115,0.0680677,92853.0,92852.0,0.41557]
[1764858472713,0.0107677,92853.0,92852.0,0.41557]
[1764858473320,0.06822762,92862.0,92861.0,0.05477]
[1764858474614,0.03891762,92862.0,92861.0,0.05777]
[1764858474817,0.01092762,92862.0,92861.0,0.05777]
[1764858477623,0.00016092,92862.0,92861.0,0.05777]
[1764858477821,0.010766,92868.0,92862.0,0.01626]
[1764858478018,0.010766,92868.0,92867.0,0.05477]
[1764858478423,0.038756,92868.0,92867.0,0.05477]
[1764858478723,0.068066,92868.0,92867.0,0.05477]
[1764858480121,0.068066,92868.0,92867.0,0.05577]
[1764858480315,0.0680646,92880.0,92879.0,0.05477]
[1764858480510,0.0680646,92880.0,92879.0,0.02743]
[1764858480717,0.0680646,92880.0,92871.0,0.3608]
[1764858480718,0.0680655,92872.0,92871.0,0.41557]
[1764858481824,0.0680655,92872.0,92871.0,0.05477]
[1764858484128,0.068516,92868.0,92867.0,0.08422109]
[1764858484327,0.07093602,92868.0,92867.0,0.08422109]
[1764858484916,0.07093602,92868.0,92867.0,0.41604]
[1764858485422,0.07093602,92868.0,92867.0,0.44605959]
[1764858485630,0.07093602,92868.0,92867.0,0.44605956]
[1764858485820,0.05775,92868.0,92867.0,0.44605956]
[1764858486022,0.05775,92868.0,92867.0,0.41704]
[1764858487522,0.0107659,92869.0,92868.0,0.05524]
[1764858487729,0.0107659,92869.0,92868.0,0.08426117]
[1764858487929,0.0398059,92869.0,92868.0,0.08426117]
[1764858488124,0.0107659,92869.0,92868.0,0.10154117]
[1764858488330,0.0685155,92873.0,92872.0,0.0107654]
[1764858488630,0.0107655,92873.0,92872.0,0.0660054]
[1764858488933,0.0685155,92873.0,92872.0,0.0660054]
[1764858490127,0.0685155,92873.0,92872.0,0.05524]
[1764858490626,0.0695155,92873.0,92872.0,0.05524]
[1764858495830,0.0695155,92873.0,92868.0,0.05617117]
[1764858495831,0.0685159,92869.0,92868.0,0.05617117]
[1764858496029,0.07093592,92869.0,92868.0,0.08426117]
[1764858496229,0.07093592,92869.0,92868.0,0.05524]
[1764858502237,0.07093592,92869.0,92868.0,0.08426117]
[1764858502423,0.07093592,92869.0,92868.0,0.10154117]
[1764858503028,0.07093592,92869.0,92868.0,0.08426117]
[1764858503234,0.07093592,92869.0,92868.0,0.05524]
[1764858503430,0.07093592,92869.0,92868.0,0.08425768]
[1764858503733,0.0685162,92866.0,92865.0,0.05616768]
[1764858503931,0.0685162,92866.0,92865.0,0.05524]
[1764858504128,0.0685162,92866.0,92865.0,0.41604]
[1764858506340,0.0685162,92866.0,92865.0,0.41704]
[1764858506842,0.0398062,92866.0,92865.0,0.41704]
[1764858507032,0.0685162,92866.0,92865.0,0.41704]
[1764858508648,0.0107662,92866.0,92865.0,0.41704]
[1764858509033,0.11562777,92877.0,92876.0,0.05524]
[1764858509231,0.05775,92877.0,92876.0,0.41604]
[1764858510042,0.05875,92877.0,92876.0,0.41604]
[1764858510438,0.05875,92877.0,92876.0,0.38889]
[1764858510745,0.06075,92877.0,92876.0,0.41604]
[1764858512551,0.20075,92877.0,92876.0,0.3608]
[1764858512843,0.20075,92877.0,92832.0,0.01728]
[1764858512844,0.05775,92866.0,92865.0,0.02715]
[1764858513150,0.0685162,92866.0,92865.0,0.02715]
[1764858513333,0.0685162,92866.0,92865.0,0.05524]
[1764858513539,0.0685162,92866.0,92865.0,0.08427121]
[1764858514443,0.0685162,92866.0,92865.0,0.08527121]
[1764858514841,0.0685162,92866.0,92865.0,0.001]
[1764858515246,0.2085162,92866.0,92865.0,0.001]
[1764858515445,0.0685162,92866.0,92865.0,0.0286]
[1764858515943,0.0685162,92866.0,92865.0,0.001]
[1764858516343,0.0685162,92866.0,92865.0,0.05777]
[1764858516540,0.1985162,92866.0,92865.0,0.001]
[1764858519348,0.1185162,92866.0,92865.0,0.001]
[1764858519841,0.0685162,92866.0,92865.0,0.05777]
[1764858520240,0.5685962,92866.0,92865.0,0.05777]
[1764858520441,0.5685962,92866.0,92865.0,0.001]
[1764858521148,0.5685962,92866.0,92865.0,0.05777]
[1764858521352,0.0685162,92866.0,92865.0,0.05777]
[1764858524550,0.0685162,92866.0,92865.0,0.0286]
[1764858524746,0.1185162,92866.0,92865.0,0.001]
[1764858525981,0.2085162,92866.0,92865.0,0.001]
[1764858526548,0.3608,92867.0,92865.0,0.05924]
[1764858526759,0.00026915,92886.0,92885.0,0.05824]
[1764858526760,0.12668188,92886.0,92885.0,0.05824]
[1764858526953,0.07095307,92886.0,92885.0,0.41904]
[1764858528246,0.07095307,92886.0,92885.0,0.43025088]
[1764858529156,0.07595307,92886.0,92885.0,0.03970088]
[1764858529457,0.07595307,92886.0,92885.0,0.06945088]
[1764858530156,0.06518917,92886.0,92885.0,0.06945088]
[1764858530356,0.0575,92879.0,92878.0,0.05824]
[1764858530657,0.0575,92879.0,92878.0,0.06951756]
[1764858530959,0.0682647,92879.0,92878.0,0.06951756]
[1764858531457,0.0692647,92879.0,92878.0,0.06951756]
[1764858531949,0.0712647,92879.0,92878.0,0.06951756]
[1764858533960,0.0575,92868.0,92867.0,0.02898614]
[1764858534166,0.0575,92862.0,92861.0,0.05824]
[1764858535153,0.02767,92862.0,92861.0,0.05824]
[1764858535855,0.02767,92862.0,92861.0,0.06024]
[1764858536050,0.5110466,92863.0,92862.0,0.05824]
[1764858536257,0.5685466,92863.0,92862.0,0.05824]
[1764858536458,0.0682666,92863.0,92862.0,0.05824]
[1764858538261,0.0682666,92863.0,92862.0,0.06024]
[1764858539765,0.2082666,92863.0,92862.0,0.06024]
[1764858539956,0.2082666,92863.0,92862.0,0.03049]
[1764858540157,0.2082666,92863.0,92862.0,0.07774]
[1764858540865,0.2082666,92863.0,92862.0,0.03049]
[1764858541064,0.2082666,92863.0,92862.0,0.06024]
[1764858541464,0.0682666,92863.0,92862.0,0.05924]
[1764858541660,0.0682666,92863.0,92862.0,0.07674]
[1764858542056,0.0384366,92863.0,92862.0,0.07574]
[1764858542260,0.0384366,92863.0,92862.0,0.07774]
[1764858542455,0.0682666,92863.0,92862.0,0.07774]
[1764858542656,0.2082666,92863.0,92862.0,0.07774]
[1764858542859,0.0682666,92863.0,92862.0,0.06024]
[1764858543062,0.2082666,92863.0,92862.0,0.06024]
[1764858544867,0.2082666,92863.0,92862.0,0.002]
[1764858545464,0.0695469,92860.0,92858.0,0.00016153]
[1764858545663,0.42200002,92859.0,92858.0,0.05895153]
[1764858545869,0.56200002,92859.0,92858.0,0.06999675]
[1764858547875,0.56200002,92859.0,92858.0,0.07099675]
[1764858549670,0.56200002,92859.0,92858.0,0.01220675]
[1764858549878,0.56200002,92859.0,92840.0,0.3715692]
[1764858549879,0.0107688,92844.0,92843.0,0.02898614]
[1764858550079,0.0695488,92844.0,92843.0,0.05879]
[1764858551079,0.0695488,92844.0,92843.0,0.06179]
[1764858551279,0.3608,92851.0,92850.0,0.05879]
[1764858552070,0.3608,92851.0,92850.0,0.06984206]
[1764858552873,0.39014,92851.0,92850.0,0.06984206]
[1764858554082,0.39014,92851.0,92850.0,0.07084206]
[1764858554278,0.3608,92851.0,92850.0,0.07084206]
[1764858554578,0.39014,92851.0,92850.0,0.07084206]
[1764858554771,0.39014,92851.0,92850.0,0.07284206]
[1764858554966,0.02934,92851.0,92850.0,0.08361016]
[1764858555166,0.00016153,92853.0,92852.0,0.05879]
[1764858555370,0.03192155,92853.0,92852.0,0.41959]
[1764858555575,0.00258155,92853.0,92852.0,0.41959]
[1764858555974,0.03192155,92853.0,92852.0,0.41959]
[1764858556883,0.06136155,92853.0,92852.0,0.42059]
[1764858557583,0.06136155,92853.0,92852.0,0.42259]
[1764858558673,0.03192155,92853.0,92852.0,0.42259]
[1764858559069,0.00016153,92853.0,92852.0,0.42259]
[1764858562386,0.00016153,92853.0,92852.0,0.45155424]
[1764858563189,0.06136155,92853.0,92852.0,0.06179]
[1764858563385,0.06136155,92853.0,92852.0,0.09075424]
[1764858563581,0.20136155,92853.0,92852.0,0.09075424]
[1764858563776,0.70160155,92853.0,92852.0,0.003]
[1764858564179,0.56160155,92853.0,92852.0,0.003]
[1764858564576,0.70160155,92853.0,92852.0,0.003]
[1764858564790,0.0695488,92844.0,92843.0,0.02896424]
[1764858565087,0.05878,92843.0,92842.0,0.02896424]
[1764858565391,0.05878,92843.0,92842.0,0.05861424]
[1764858565589,0.05878,92843.0,92842.0,0.08775424]
[1764858565794,0.05878,92843.0,92842.0,0.06992407]
[1764858566088,0.05878,92843.0,92842.0,0.09897221]
[1764858566883,0.05878,92843.0,92842.0,0.09997221]
[1764858567289,0.05878,92843.0,92842.0,0.07092407]
[1764858567889,0.05878,92843.0,92842.0,0.07192407]
[1764858570393,0.0107688,92844.0,92843.0,0.05879]
[1764858570692,0.0695488,92844.0,92843.0,0.05879]
[1764858571280,0.1095488,92844.0,92843.0,0.05879]
[1764858571485,0.0695488,92844.0,92843.0,0.05879]
[1764858571681,0.1195488,92844.0,92843.0,0.06079]
[1764858571883,0.0695488,92844.0,92843.0,0.06079]
[1764858572483,0.1095488,92844.0,92843.0,0.06079]
[1764858572784,0.0695488,92844.0,92843.0,0.06079]
[1764858572983,0.0695488,92844.0,92843.0,0.05979]
[1764858573282,0.0695488,92844.0,92843.0,0.03065]
[1764858573593,0.0695488,92844.0,92843.0,0.05979]
[1764858573793,0.0695488,92844.0,92843.0,0.05879]
[1764858575693,0.1995488,92844.0,92843.0,0.05879]
[1764858576090,0.0695488,92844.0,92843.0,0.05879]
[1764858580988,0.50024,92845.0,92844.0,0.0823988]
[1764858581190,0.0107684,92848.0,92847.0,0.0107683]
[1764858581390,0.0107684,92848.0,92847.0,0.0657083]
[1764858582292,0.0107684,92848.0,92847.0,0.1044428]
[1764858582888,0.010768,92851.0,92850.0,0.082398]
[1764858584401,0.011768,92851.0,92850.0,0.082398]
[1764858585088,0.070178,92851.0,92850.0,0.10062421]
[1764858585488,0.070178,92851.0,92850.0,0.07163]
[1764858588095,0.070178,92851.0,92850.0,0.10062421]
[1764858588495,0.070178,92851.0,92850.0,0.07163]
[1764858589306,0.0666786,92845.0,92844.0,0.10220421]
[1764858589604,0.06909862,92845.0,92844.0,0.10220421]
[1764858589799,0.04176862,92845.0,92844.0,0.11297301]
[1764858590107,0.04176862,92845.0,92844.0,0.07321]
[1764858590296,0.0107686,92845.0,92844.0,0.07321]